bitfinex/quotes_SOLUSD_20241105
["timestamp","ask_amount","ask_price","bid_price","bid_amount"]
[1730823963642,6.2746863,167.57,167.52,17.1228985]
[1730823964739,0.3069863,167.57,167.53,17.1228985]
[1730823964935,0.3069863,167.57,167.52,17.1228985]
[1730823965152,23.3975848,167.57,167.52,17.1228985]
[1730823965740,23.3975848,167.57,167.51,17.1228985]
[1730823965939,17.1228985,167.54,167.49,17.1228985]
[1730823966359,17.1228985,167.54,167.46,20.9004]
[1730823966360,0.3069863,167.57,167.53,17.1228985]
[1730823966662,0.3069863,167.57,167.54,17.1228985]
[1730823966842,17.4298848,167.57,167.51,17.1228985]
[1730823967037,23.3975848,167.57,167.51,17.1228985]
[1730823967243,17.1228985,167.55,167.49,17.1228985]
[1730823967457,17.1228985,167.52,167.46,32.0517985]
[1730823967761,17.1228985,167.51,167.46,32.0517985]
[1730823967958,23.0926985,167.51,167.46,32.0517985]
[1730823968162,23.776884,167.5,167.46,17.1228985]
[1730823968660,17.1228985,167.49,167.43,23.0954985]
[1730823968961,17.1228985,167.47,167.42,20.9046]
[1730823969180,40.8997825,167.46,167.4,23.36322764]
[1730823969338,17.1228985,167.49,167.43,17.1228985]
[1730823969539,23.776884,167.49,167.45,17.1228985]
[1730823969769,23.776884,167.5,167.45,17.1228985]
[1730823970448,29.747184,167.5,167.45,17.1228985]
[1730823970864,17.1228985,167.49,167.44,17.1228985]
[1730823971068,40.8997825,167.48,167.42,17.1228985]
[1730823971543,23.776884,167.48,167.43,17.1228985]
[1730823972051,40.8997825,167.48,167.42,17.1228985]
[1730823972260,46.8708825,167.48,167.42,17.1228985]
[1730823972462,23.776884,167.45,167.41,17.1228985]
[1730823972667,40.8997825,167.45,167.39,17.1228985]
[1730823972964,23.776884,167.43,167.38,17.1228985]
[1730823973155,40.8997825,167.43,167.37,32.0595985]
[1730823973357,40.8997825,167.43,167.37,17.1228985]
[1730823973745,17.1228985,167.42,167.36,17.1228985]
[1730823974064,23.776884,167.41,167.37,17.1228985]
[1730823974263,23.776884,167.42,167.37,17.1228985]
[1730823974465,33.7725985,167.45,167.39,17.1228985]
[1730823974644,23.776884,167.46,167.41,17.1228985]
[1730823974844,85.6725,167.49,167.43,17.1228985]
[1730823974845,32.7953985,167.49,167.43,17.1228985]
[1730823975068,21.643,167.49,167.44,17.1228985]
[1730823975267,15.6725,167.49,167.45,17.1228985]
[1730823975468,17.51749413,167.56,167.47,17.1228985]
[1730823975469,33.3514985,167.53,167.47,17.1228985]
[1730823975674,5.9694,167.52,167.47,17.1228985]
[1730823975840,5.9694,167.52,167.4,15.1655]
[1730823975841,23.0922985,167.52,167.46,17.1228985]
[1730823976044,17.1228985,167.51,167.45,17.1228985]
[1730823976446,5.9701,167.5,167.45,17.1228985]
[1730823977356,5.9701,167.5,167.46,17.1228985]
[1730823977966,5.9701,167.5,167.45,17.1228985]
[1730823978164,5.9701,167.5,167.46,17.1228985]
[1730823978563,40.8997825,167.5,167.44,17.1228985]
[1730823978755,40.8997825,167.5,167.43,17.1228985]
[1730823979172,40.8997825,167.5,167.44,17.1228985]
[1730823979475,23.776884,167.5,167.45,17.1228985]
[1730823979664,23.776884,167.5,167.47,17.1228985]
[1730823980267,23.776884,167.5,167.46,17.1228985]
[1730823980668,29.747184,167.5,167.45,17.1228985]
[1730823983573,29.747184,167.5,167.46,17.1228985]
[1730823985180,17.1228985,167.54,167.48,17.1228985]
[1730823985354,5.9687,167.54,167.48,17.1228985]
[1730823985672,5.9684,167.55,167.49,17.1228985]
[1730823985885,5.968,167.56,167.5,17.1228985]
[1730823986376,5.968,167.56,167.5,23.0928985]
[1730823986779,23.0908985,167.56,167.49,23.0930985]
[1730823987079,23.776884,167.55,167.49,23.0930985]
[1730823987375,23.776884,167.55,167.5,17.1228985]
[1730823987673,29.745184,167.55,167.5,23.0928985]
[1730823987877,29.745184,167.55,167.51,17.1228985]
[1730823988988,17.4298848,167.57,167.48,14.9267]
[1730823988989,0.3069863,167.57,167.54,17.1228985]
[1730823989278,0.3069863,167.57,167.56,17.1228985]
[1730823989661,0.3069863,167.57,167.55,17.1228985]
[1730823989861,0.3069863,167.57,167.49,20.0]
[1730823989862,0.3069863,167.57,167.56,17.1228985]
[1730823990984,0.3069863,167.57,167.55,17.1228985]
[1730823991483,6.2748863,167.57,167.53,17.1228985]
[1730823991665,0.3069863,167.57,167.56,17.1228985]
[1730823993099,0.3069863,167.57,167.56,23.0908985]
[1730823996060,0.3069863,167.57,167.56,17.1228985]
[1730823996464,0.3069863,167.57,167.56,23.0908985]
[1730823996872,0.3069863,167.57,167.56,17.1228985]
[1730823997295,0.3069863,167.57,167.56,37.1228985]
[1730823997763,0.3069863,167.57,167.56,37.2228985]
[1730823997967,3.42982108,167.65,167.57,20.0]
[1730823998281,0.3069863,167.65,167.64,17.1228985]
[1730823998599,0.3069863,167.65,167.63,17.1228985]
[1730823999177,0.3069863,167.65,167.64,17.1228985]
[1730823999480,0.3069863,167.65,167.61,17.1228985]
[1730823999995,0.3069863,167.65,167.6,20.8819]
[1730823999996,0.3069863,167.65,167.6,38.0047985]
[1730824000792,0.3069863,167.65,167.61,17.1228985]
[1730824002089,0.3069863,167.65,167.61,23.0889985]
[1730824002973,5.9651,167.64,167.56,14.9193]
[1730824003179,17.1228985,167.61,167.56,32.0421985]
[1730824003380,17.1228985,167.62,167.56,32.0421985]
[1730824003992,17.1228985,167.62,167.56,38.0101985]
[1730824004187,23.0890985,167.61,167.56,14.9193]
[1730824004408,17.1228985,167.6,167.56,14.9193]
[1730824004582,23.0890985,167.61,167.56,14.9193]
[1730824005282,23.0890985,167.61,167.56,32.0421985]
[1730824005482,5.9662,167.61,167.56,38.0101985]
[1730824006309,23.0890985,167.61,167.53,22.7418]
[1730824006481,17.1228985,167.59,167.53,23.0918985]
[1730824006682,17.1228985,167.59,167.54,17.1228985]
[1730824007805,17.1228985,167.58,167.53,17.1228985]
[1730824008120,17.1228985,167.58,167.52,38.0150985]
[1730824008505,17.1228985,167.58,167.53,17.1228985]
[1730824009799,17.1228985,167.56,167.52,14.9228]
[1730824009997,17.1228985,167.56,167.51,17.1228985]
[1730824010378,17.1228985,167.57,167.51,17.1228985]
[1730824010782,40.8997825,167.58,167.52,17.1228985]
[1730824011208,23.776884,167.56,167.52,17.1228985]
[1730824011405,29.744984,167.56,167.52,17.1228985]
[1730824011706,29.744984,167.56,167.51,17.1228985]
[1730824011896,29.744984,167.56,167.52,17.1228985]
[1730824012711,5.9662,167.61,167.54,17.1228985]
[1730824012889,23.0890985,167.61,167.55,17.1228985]
[1730824013500,23.0890985,167.61,167.54,17.1228985]
[1730824013501,17.1228985,167.6,167.54,17.1228985]
[1730824013698,5.9669,167.59,167.54,17.1228985]
[1730824014087,40.8997825,167.58,167.52,17.1228985]
[1730824014288,17.1228985,167.57,167.51,17.1228985]
[1730824014489,23.776884,167.58,167.53,17.1228985]
[1730824014685,17.1228985,167.61,167.55,17.1228985]
[1730824014892,17.1228985,167.61,167.5,20.9954]
[1730824014893,23.0886985,167.62,167.57,17.1228985]
[1730824015182,17.1228985,167.62,167.57,17.1228985]
[1730824016295,23.0887985,167.62,167.57,17.1228985]
[1730824016611,23.0887985,167.62,167.56,23.0905985]
[1730824017490,5.9659,167.62,167.57,17.1228985]
[1730824018395,40.8997825,167.61,167.55,32.0432985]
[1730824018600,23.776884,167.61,167.56,17.1228985]
[1730824018800,17.1228985,167.6,167.51,14.9238]
[1730824019001,23.776884,167.61,167.55,17.1228985]
[1730824019002,23.776884,167.59,167.55,17.1228985]
[1730824019208,23.776884,167.6,167.55,17.1228985]
[1730824019689,29.743684,167.6,167.55,17.1228985]
[1730824020511,46.8665825,167.6,167.54,17.1228985]
[1730824020701,29.743684,167.6,167.56,17.1228985]
[1730824021109,29.743684,167.6,167.55,17.1228985]
[1730824021302,46.8665825,167.6,167.54,17.1228985]
[1730824022494,5.9658,167.62,167.56,17.1228985]
[1730824022802,5.9658,167.62,167.57,17.1228985]
[1730824023196,23.0886985,167.62,167.56,17.1228985]
[1730824023813,29.743284,167.61,167.56,17.1228985]
[1730824024013,0.3069863,167.65,167.6,17.1228985]
[1730824024308,0.3069863,167.65,167.64,17.1228985]
[1730824025797,0.3069863,167.65,167.64,23.0879985]
[1730824026889,0.3069863,167.65,167.64,17.1228985]
[1730824027090,0.3069863,167.65,167.64,23.0879985]
[1730824030494,0.3069863,167.65,167.64,58.8968985]
[1730824030691,0.3069863,167.74,167.64,58.8968985]
[1730824031006,0.3069863,167.74,167.71,17.1228985]
[1730824031202,0.3069863,167.74,167.7,17.1228985]
[1730824031693,6.2685863,167.74,167.7,17.1228985]
[1730824032990,0.3069863,167.74,167.71,17.1228985]
[1730824033195,0.3069863,167.74,167.7,17.1228985]
[1730824033413,0.3069863,167.74,167.71,17.1228985]
[1730824033718,23.776884,167.73,167.65,5.9648]
[1730824033898,23.776884,167.73,167.68,17.1228985]
[1730824034411,0.3069863,167.74,167.71,17.1228985]
[1730824034820,6.2685863,167.74,167.71,17.1228985]
[1730824036006,6.2685863,167.74,167.7,17.1228985]
[1730824036321,70.0,167.67,167.52,0.1]
[1730824036494,17.1228985,167.62,167.56,17.1228985]
[1730824037114,17.1228985,167.61,167.55,17.1228985]
[1730824037326,17.1228985,167.63,167.57,17.1228985]
[1730824037622,17.1228985,167.63,167.58,17.1228985]
[1730824037833,40.8997825,167.62,167.56,17.1228985]
[1730824037998,17.1228985,167.6,167.54,17.1228985]
[1730824038204,17.1228985,167.59,167.54,17.1228985]
[1730824038713,17.1228985,167.55,167.5,6.23869049]
[1730824038902,17.1228985,167.54,167.5,6.23869049]
[1730824039102,17.1228985,167.54,167.46,5.9712]
[1730824039408,17.1228985,167.55,167.49,17.1228985]
[1730824040199,5.9687,167.54,167.49,17.1228985]
[1730824040719,23.0915985,167.54,167.49,17.1228985]
[1730824041097,23.0915985,167.54,167.48,17.1228985]
[1730824041603,17.1228985,167.55,167.49,17.1228985]
[1730824042102,17.1228985,167.5,167.45,0.3069863]
[1730824042434,17.1228985,167.49,167.45,0.3069863]
[1730824042722,17.1228985,167.53,167.48,17.1228985]
[1730824042908,17.1228985,167.53,167.47,17.1228985]
[1730824043107,90.9854,167.58,167.47,17.1228985]
[1730824043319,17.1228985,167.52,167.47,17.1228985]
[1730824043527,17.1228985,167.52,167.46,17.1228985]
[1730824043817,5.9697,167.51,167.46,17.1228985]
[1730824044022,5.9697,167.51,167.47,17.1228985]
[1730824044398,23.0925985,167.51,167.46,17.1228985]
[1730824044908,5.9697,167.51,167.46,17.1228985]
[1730824045643,17.1228985,167.53,167.47,17.1228985]
[1730824045820,84.9182,167.58,167.5,17.1228985]
[1730824045821,17.1228985,167.56,167.5,17.1228985]
[1730824046122,23.776884,167.55,167.51,17.1228985]
[1730824046300,23.776884,167.55,167.51,16.6228985]
[1730824046505,23.776884,167.56,167.5,17.1228985]
[1730824047100,28.5267,167.59,167.55,17.1228985]
[1730824047299,23.0890985,167.61,167.55,17.1228985]
[1730824047618,17.1228985,167.6,167.54,17.1228985]
[1730824047797,17.1228985,167.6,167.5,14.9253]
[1730824047798,17.1228985,167.6,167.55,17.1228985]
[1730824048510,5.9669,167.59,167.55,17.1228985]
[1730824049599,5.9669,167.59,167.56,17.1228985]
[1730824049800,6.4246,167.63,167.57,17.1228985]
[1730824049801,29.742684,167.62,167.57,17.1228985]
[1730824050223,5.9658,167.62,167.57,17.1228985]
[1730824050603,17.1228985,167.61,167.53,20.8915]
[1730824050824,23.0886985,167.62,167.56,17.1228985]
[1730824051918,5.9658,167.62,167.57,17.1228985]
[1730824052300,23.0886985,167.62,167.56,17.1228985]
[1730824052907,23.0886985,167.62,167.57,17.1228985]
[1730824053298,23.0886985,167.62,167.56,17.1228985]
[1730824054325,17.1228985,167.6,167.55,17.1228985]
[1730824054628,23.0886985,167.62,167.56,17.1228985]
[1730824054805,23.776884,167.57,167.49,20.8961]
[1730824055005,17.1228985,167.56,167.5,17.1228985]
[1730824055635,40.8997825,167.57,167.51,17.1228985]
[1730824056113,5.9658,167.62,167.56,17.1228985]
[1730824056314,5.9658,167.62,167.57,17.1228985]
[1730824057230,5.9658,167.62,167.58,17.1228985]
[1730824057526,5.9658,167.62,167.57,17.1228985]
[1730824057928,6.4246,167.63,167.59,17.1228985]
[1730824058144,23.0868985,167.67,167.61,17.1228985]
[1730824059328,17.1228985,167.66,167.6,17.1228985]
[1730824060322,5.9648,167.65,167.6,17.1228985]
[1730824061136,23.0876985,167.65,167.6,17.1228985]
[1730824061520,23.0876985,167.65,167.59,17.1228985]
[1730824061744,23.0876985,167.65,167.6,17.1228985]
[1730824062034,23.0876985,167.65,167.59,17.1228985]
[1730824062222,17.1228985,167.63,167.58,32.0410985]
[1730824062420,23.776884,167.64,167.59,17.1228985]
[1730824062619,29.742284,167.64,167.59,17.1228985]
[1730824063735,46.8651825,167.64,167.58,17.1228985]
[1730824064146,6.2174,167.68,167.63,17.1228985]
[1730824064437,16.0859,167.69,167.64,17.1228985]
[1730824064624,17.1228985,167.68,167.57,6.7493]
[1730824064825,17.1228985,167.68,167.62,17.1228985]
[1730824065244,70.0,167.73,167.66,17.1228985]
[1730824065245,5.9619,167.73,167.66,17.1228985]
[1730824065537,17.1228985,167.7,167.64,17.1228985]
[1730824065845,0.3069863,167.74,167.65,17.1228985]
[1730824065846,17.1228985,167.71,167.65,17.1228985]
[1730824066020,17.1228985,167.72,167.66,17.1228985]
[1730824066411,40.8997825,167.71,167.65,17.1228985]
[1730824066632,17.1228985,167.7,167.64,17.1228985]
[1730824066936,40.8997825,167.71,167.65,17.1228985]
[1730824067134,46.8625825,167.71,167.65,17.1228985]
[1730824067710,46.8625825,167.71,167.66,17.1228985]
[1730824067711,29.739684,167.71,167.66,17.1228985]
[1730824068110,5.9628,167.71,167.67,17.1228985]
[1730824068728,17.4298848,167.74,167.68,17.1228985]
[1730824069038,23.3916848,167.74,167.69,17.1228985]
[1730824070741,23.3916848,167.74,167.68,17.1228985]
[1730824070939,6.2687863,167.74,167.69,17.1228985]
[1730824071526,0.3069863,167.74,167.73,17.1228985]
[1730824072430,0.3069863,167.74,167.73,23.0847985]
[1730824073828,0.3069863,167.74,167.72,14.9054]
[1730824074144,0.3069863,167.74,167.7,17.1228985]
[1730824074322,0.3069863,167.74,167.7,23.0858985]
[1730824074528,6.2686863,167.74,167.68,20.8727]
[1730824074736,6.2686863,167.74,167.69,17.1228985]
[1730824074936,23.3915848,167.74,167.69,17.1228985]
[1730824075332,23.3915848,167.74,167.68,32.0321985]
[1730824076748,23.3915848,167.74,167.68,37.9958985]
[1730824077135,6.2686863,167.74,167.69,17.1228985]
[1730824077531,6.2686863,167.74,167.69,27.33206654]
[1730824079930,0.3069863,167.74,167.72,27.33206654]
[1730824080133,0.3069863,167.74,167.71,27.33206654]
[1730824080724,0.3069863,167.74,167.7,14.9075]
[1730824080944,33.60065284,167.74,167.68,33.29556654]
[1730824081152,33.60065284,167.74,167.68,27.33206654]
[1730824081951,33.60065284,167.74,167.68,33.29566654]
[1730824082250,0.3069863,167.74,167.7,27.33206654]
[1730824082837,0.3069863,167.74,167.69,27.33206654]
[1730824083032,0.3069863,167.74,167.7,27.33206654]
[1730824083256,0.3069863,167.74,167.69,27.33206654]
[1730824084141,0.3069863,167.74,167.7,27.33206654]
[1730824084844,0.3069863,167.74,167.69,48.20376654]
[1730824085049,27.33206654,167.73,167.67,27.33206654]
[1730824085436,6.2686863,167.74,167.68,27.33206654]
[1730824085640,33.60075284,167.74,167.68,27.33206654]
[1730824085845,0.3069863,167.74,167.7,27.33206654]
[1730824086058,0.3069863,167.74,167.69,27.33206654]
[1730824086230,0.3069863,167.74,167.69,33.29516654]
[1730824086855,33.60075284,167.74,167.69,5.9631]
[1730824087034,33.60075284,167.74,167.68,48.20466654]
[1730824088332,33.60075284,167.74,167.68,42.24096654]
[1730824088633,27.33206654,167.73,167.68,14.9089]
[1730824089249,27.33206654,167.73,167.67,33.29606654]
[1730824089458,6.2686863,167.74,167.69,27.33206654]
[1730824090155,33.60075284,167.74,167.68,27.33206654]
[1730824090351,6.2686863,167.74,167.69,27.33206654]
[1730824091653,0.3069863,167.74,167.71,27.33206654]
[1730824091837,0.3069863,167.74,167.7,27.33206654]
[1730824092738,0.3069863,167.74,167.69,27.33206654]
[1730824093059,6.2685863,167.74,167.69,33.29506654]
[1730824093244,0.3069863,167.74,167.7,27.33206654]
[1730824093859,6.2685863,167.74,167.69,33.29506654]
[1730824094230,0.3069863,167.74,167.69,33.29506654]
[1730824095261,33.60075284,167.74,167.68,27.33206654]
[1730824095474,27.33206654,167.73,167.67,27.33206654]
[1730824095644,27.33206654,167.73,167.68,27.33206654]
[1730824095961,33.60075284,167.74,167.68,27.33206654]
[1730824097761,27.33206654,167.73,167.68,27.33206654]
[1730824098060,33.60075284,167.74,167.68,27.33206654]
[1730824098360,6.2686863,167.74,167.69,27.33206654]
[1730824098535,6.2686863,167.74,167.68,27.33206654]
[1730824098737,33.60075284,167.74,167.67,20.874]
[1730824099063,33.60075284,167.74,167.68,27.33206654]
[1730824099660,23.35345089,167.74,167.68,17.08476459]
[1730824099854,17.08476459,167.73,167.67,17.08476459]
[1730824100542,23.35345089,167.74,167.68,17.08476459]
[1730824101667,23.35345089,167.74,167.67,5.9639]
[1730824101668,17.08476459,167.73,167.67,23.04866459]
[1730824102361,5.9623,167.72,167.68,17.08476459]
[1730824103558,5.9619,167.73,167.68,17.08476459]
[1730824104161,23.04666459,167.73,167.68,17.08476459]
[1730824104863,23.04666459,167.73,167.67,17.08476459]
[1730824105168,23.04666459,167.73,167.64,20.878]
[1730824105169,17.08476459,167.72,167.66,17.08476459]
[1730824106069,17.08476459,167.72,167.66,23.04886459]
[1730824106458,23.04666459,167.73,167.67,17.08476459]
[1730824106936,0.3069863,167.74,167.68,17.08476459]
[1730824107142,17.08476459,167.73,167.67,17.08476459]
[1730824107641,17.08476459,167.72,167.66,37.95996459]
[1730824108961,23.04726459,167.72,167.66,31.99586459]
[1730824109170,17.08476459,167.7,167.66,14.9111]
[1730824109460,17.08476459,167.71,167.66,20.8755]
[1730824110170,17.08476459,167.72,167.66,37.96026459]
[1730824110362,16.3138,167.73,167.69,17.08476459]
[1730824110569,0.3069863,167.74,167.71,17.08476459]
[1730824111577,0.3069863,167.74,167.71,23.04726459]
[1730824112469,0.3069863,167.74,167.71,37.95386459]
[1730824112645,0.3069863,167.74,167.73,17.08476459]
[1730824113668,0.3069863,167.74,167.73,23.04666459]
[1730824115966,0.3069863,167.74,167.73,43.14666459]
[1730824116151,0.3069863,167.74,167.73,43.04666459]
[1730824116352,0.3069863,167.74,167.73,43.14666459]
[1730824117051,0.3069863,167.74,167.73,43.04666459]
[1730824117252,0.3069863,167.74,167.73,25.9619]
[1730824117451,0.3069863,167.74,167.73,23.04666459]
[1730824119163,0.3069863,167.74,167.72,17.08476459]
[1730824120474,0.3069863,167.74,167.73,5.9619]
[1730824121658,0.3069863,167.74,167.73,17.08476459]
[1730824122165,0.3069863,167.74,167.72,17.08476459]
[1730824122779,0.3069863,167.74,167.73,5.9619]
[1730824123984,0.3069863,167.74,167.73,23.04666459]
[1730824124884,0.3069863,167.74,167.72,17.08476459]
[1730824125759,0.3069863,167.74,167.71,31.99136459]
[1730824126465,0.3069863,167.74,167.71,14.9066]
[1730824126672,0.3069863,167.74,167.71,31.99136459]
[1730824127180,0.3069863,167.74,167.73,17.08476459]
[1730824127683,0.3069863,167.74,167.71,20.8692]
[1730824127684,0.3069863,167.74,167.72,17.08476459]
[1730824127864,0.3069863,167.74,167.71,20.8692]
[1730824127865,0.3069863,167.74,167.71,37.95396459]
[1730824128063,0.3069863,167.74,167.73,5.9619]
[1730824130083,0.3069863,167.74,167.72,20.868]
[1730824130290,0.3069863,167.74,167.72,37.95276459]
[1730824131390,0.3069863,167.74,167.71,17.08476459]
[1730824133691,0.3069863,167.74,167.72,20.868]
[1730824134276,0.3069863,167.74,167.72,37.95276459]
[1730824135280,0.3069863,167.74,167.73,17.08476459]
[1730824135490,0.3069863,167.74,167.69,29.8169]
[1730824135491,0.3069863,167.74,167.69,50.6886]
[1730824135717,0.3069863,167.74,167.7,17.08476459]
[1730824135992,0.3069863,167.74,167.71,17.08476459]
[1730824136295,0.3069863,167.74,167.72,17.08476459]
[1730824136498,0.3069863,167.74,167.73,17.08476459]
[1730824136874,0.3069863,167.74,167.69,50.6886]
[1730824137198,0.3069863,167.74,167.72,17.08476459]
[1730824137372,0.3069863,167.74,167.73,5.9619]
[1730824138214,0.3069863,167.74,167.73,23.04666459]
[1730824138574,0.3069863,167.74,167.73,43.04666459]
[1730824138780,0.3069863,167.74,167.73,43.14666459]
[1730824139891,0.3069863,167.74,167.73,84.00831318]
[1730824140895,0.3069863,167.74,167.73,43.14666459]
[1730824142800,0.3069863,167.74,167.73,5.9619]
[1730824144078,0.3069863,167.74,167.72,14.9054]
[1730824144394,0.3069863,167.74,167.72,37.95246459]
[1730824144779,0.3069863,167.74,167.73,17.08476459]
[1730824146783,0.3069863,167.74,167.72,14.9054]
[1730824146989,0.3069863,167.74,167.72,20.8677]
[1730824148196,0.3069863,167.74,167.72,37.95246459]
[1730824148389,0.3069863,167.74,167.73,17.08476459]
[1730824148997,0.3069863,167.74,167.72,14.9054]
[1730824149287,10.93620039,167.73,167.69,20.8717]
[1730824150287,11.24318669,167.74,167.69,20.8717]
[1730824151495,17.39287729,167.74,167.67,17.08589099]
[1730824151896,0.3069863,167.74,167.68,17.08589099]
[1730824152287,17.39287729,167.74,167.68,17.08589099]
[1730824152709,0.3069863,167.74,167.68,17.08589099]
[1730824153283,0.3069863,167.74,167.7,17.08589099]
[1730824153701,0.3069863,167.74,167.69,31.99429099]
[1730824154510,0.3069863,167.74,167.69,14.9084]
[1730824154890,0.3069863,167.74,167.71,17.08589099]
[1730824155614,0.3069863,167.74,167.72,20.868]
[1730824158118,0.3069863,167.74,167.72,37.95389099]
[1730824158897,0.3069863,167.74,167.73,17.08589099]
[1730824161104,0.3069863,167.74,167.73,23.04779099]
[1730824161306,11.25149543,167.79,167.73,60.13368198]
[1730824161495,11.25149543,167.79,167.78,37.08589099]
[1730824161828,0.3069863,167.82,167.78,37.08589099]
[1730824162014,0.3069863,167.82,167.81,17.08589099]
[1730824162817,0.3069863,167.82,167.81,54.17178198]
[1730824163116,0.3069863,167.82,167.81,37.08589099]
[1730824163414,0.3069863,167.82,167.81,43.04499099]
[1730824167593,0.3069863,167.82,167.81,5.9591]
[1730824167817,0.3069863,167.82,167.81,23.04499099]
[1730824181637,0.3069863,167.82,167.81,43.04499099]
[1730824185833,0.3069863,167.82,167.81,43.14499099]
[1730824186050,0.3069863,167.82,167.81,43.24499099]
[1730824186215,0.3069863,167.9,167.82,20.1]
[1730824186415,0.3069863,167.9,167.88,17.08589099]
[1730824186631,0.3069863,167.9,167.87,17.08589099]
[1730824186809,0.3069863,167.9,167.88,17.08589099]
[1730824187132,0.3069863,167.9,167.87,17.08589099]
[1730824187331,0.3069863,167.9,167.87,10.9092474]
[1730824187826,0.3069863,167.9,167.88,20.8481]
[1730824189631,0.3069863,167.9,167.88,31.7573474]
[1730824190141,0.3069863,167.9,167.88,20.8481]
[1730824191834,0.3069863,167.9,167.87,10.9092474]
[1730824192915,0.3069863,167.9,167.83,20.8544]
[1730824192916,0.3069863,167.9,167.84,20.0]
[1730824193119,0.3069863,167.9,167.86,10.9092474]
[1730824193822,0.3069863,167.9,167.87,20.8493]
[1730824194020,0.3069863,167.9,167.87,31.7585474]
[1730824194412,0.3069863,167.9,167.87,20.8493]
[1730824194911,0.3069863,167.9,167.89,10.9092474]
[1730824195938,0.3069863,167.9,167.89,16.8654474]
[1730824196826,0.3069863,167.99,167.91,0.1]
[1730824197129,0.3069863,167.99,167.97,10.9092474]
[1730824197336,0.3069863,167.99,167.96,10.9092474]
[1730824197843,11.2162337,167.99,167.9,20.0]
[1730824198133,0.3069863,167.99,167.94,10.9092474]
[1730824198331,0.3069863,167.99,167.95,10.9092474]
[1730824198537,0.3069863,167.99,167.96,10.9092474]
[1730824198839,0.3069863,167.99,167.95,10.9092474]
[1730824199033,0.3069863,167.99,167.91,20.8444]
[1730824199242,0.3069863,167.99,167.93,10.9092474]
[1730824199410,0.3069863,167.99,167.94,17.03346821]
[1730824199611,0.3069863,167.99,167.91,20.8444]
[1730824199612,0.3069863,167.99,167.95,17.03346821]
[1730824199815,0.3069863,167.99,167.98,17.03346821]
[1730824200015,0.3069863,167.99,167.98,22.98646821]
[1730824200211,0.3069863,167.99,167.97,14.8833]
[1730824200421,0.3069863,167.99,167.97,20.8367]
[1730824200832,0.3069863,167.99,167.97,37.87016821]
[1730824201140,0.3069863,167.99,167.97,20.8367]
[1730824201518,0.3069863,167.99,167.97,37.87016821]
[1730824202530,0.3069863,167.99,167.98,17.03346821]
[1730824204620,0.3069863,167.99,167.98,22.98646821]
[1730824205020,0.3069863,167.99,167.98,5.953]
[1730824205328,0.3069863,167.99,167.98,22.98646821]
[1730824206141,0.3069863,167.99,167.98,5.953]
[1730824206524,0.3069863,167.99,167.97,20.8366]
[1730824207131,0.3069863,167.99,167.95,17.03346821]
[1730824207448,0.3069863,167.99,167.96,17.03346821]
[1730824208052,0.3069863,167.99,167.97,17.03346821]
[1730824208845,0.3069863,167.99,167.98,22.98646821]
[1730824209239,0.3069863,167.99,167.98,5.953]
[1730824210424,0.3069863,167.99,167.98,22.98646821]
[1730824211631,0.3069863,167.99,167.97,37.87006821]
[1730824211948,0.3069863,167.99,167.98,17.03346821]
[1730824212949,0.3069863,167.99,167.98,22.98646821]
[1730824213340,0.3069863,167.99,167.98,5.953]
[1730824215832,0.3069863,167.99,167.98,22.98646821]
[1730824219337,0.3069863,167.99,167.98,10.8932569]
[1730824219740,0.3069863,167.99,167.97,14.8832]
[1730824219937,0.3069863,167.99,167.98,10.8932569]
[1730824221653,0.3069863,167.99,167.98,5.953]
[1730824222033,0.3069863,167.99,167.98,16.8462569]
[1730824222259,0.3069863,167.99,167.98,5.953]
[1730824222555,0.3069863,167.99,167.97,14.8832]
[1730824222940,0.3069863,167.99,167.97,31.7298569]
[1730824223257,0.3069863,167.99,167.98,10.8932569]
[1730824223647,0.3069863,167.99,167.97,31.7298569]
[1730824223848,0.3069863,167.99,167.98,10.8932569]
[1730824225147,0.3069863,167.99,167.98,16.8462569]
[1730824228840,0.3069863,167.99,167.98,5.953]
[1730824229057,0.3069863,167.99,167.98,16.8462569]
[1730824230071,0.3069863,167.99,167.98,5.953]
[1730824230258,0.3069863,167.99,167.98,16.8462569]
[1730824231139,0.3069863,167.99,167.98,5.953]
[1730824231347,0.3069863,167.99,167.98,16.8462569]
[1730824232044,0.3069863,167.99,167.97,14.8832]
[1730824232245,0.3069863,167.99,167.98,10.8932569]
[1730824232462,0.3069863,167.99,167.97,20.8366]
[1730824232648,0.3069863,167.99,167.97,31.7298569]
[1730824232847,0.3069863,167.99,167.97,31.2298569]
[1730824233253,0.3069863,167.99,167.98,10.8932569]
[1730824234749,0.3069863,167.99,167.98,16.8462569]
[1730824236641,0.3069863,167.99,167.98,103.6961685]
[1730824236839,11.11648834,168.03,167.99,20.1]
[1730824237043,11.11648834,168.03,167.99,20.0]
[1730824237251,11.11648834,168.03,168.02,10.8932569]
[1730824238165,11.11648834,168.03,167.99,20.0]
[1730824238367,11.11648834,168.03,168.02,10.8932569]